bitfinex/quotes_SOLUSD_20250805
["timestamp","ask_amount","ask_price","bid_price","bid_amount"]
[1754420403408,8.72900046,164.08,164.07,107.14]
[1754420403571,0.2,164.08,164.07,113.23495946]
[1754420403904,0.2,164.08,164.07,113.90495946]
[1754420404106,0.2,164.08,164.07,114.04712103]
[1754420404409,0.2,164.08,164.07,136.99233706]
[1754420404903,0.2,164.08,164.07,129.1533366]
[1754420405077,0.2,164.08,164.07,136.99233706]
[1754420405493,0.2,164.08,164.07,72.99233706]
[1754420405691,0.2,164.08,164.07,49.37712103]
[1754420405900,0.88,164.08,164.07,49.37712103]
[1754420406076,0.88,164.08,164.07,49.23495946]
[1754420406598,0.2,164.08,164.06,6.09523854]
[1754420406896,0.2,164.08,164.07,43.14]
[1754420406897,0.88,164.08,164.07,43.14]
[1754420407083,0.2,164.08,164.07,43.14]
[1754420407680,8.71900046,164.08,164.07,43.14]
[1754420407877,8.03900046,164.08,164.07,43.14]
[1754420408079,8.71900046,164.08,164.07,43.14]
[1754420408378,8.03900046,164.08,164.07,43.14]
[1754420408574,0.2,164.08,164.07,49.23495946]
[1754420409103,0.2,164.08,164.07,43.14]
[1754420411496,0.2,164.08,164.07,49.23495946]
[1754420412883,0.2,164.08,164.07,72.99233706]
[1754420413081,0.2,164.08,164.07,136.99233706]
[1754420415506,0.2,164.08,164.07,129.1533366]
[1754420415699,0.2,164.08,164.07,136.99233706]
[1754420419445,1e-08,164.08,164.07,284.8766602]
[1754420420492,26.0,164.16,164.11,26.0]
[1754420420493,0.68,164.16,164.11,26.0]
[1754420420707,0.68,164.16,164.13,7.83900046]
[1754420421016,63.43743551,164.24,164.14,49.19236018]
[1754420421017,0.68,164.15,164.14,49.19236018]
[1754420422102,8.51900046,164.17,164.14,49.19236018]
[1754420422303,26.0,164.21,164.14,49.19236018]
[1754420422304,26.0,164.21,164.14,57.70136064]
[1754420422521,7.83900046,164.22,164.17,7.83900046]
[1754420422699,0.68,164.21,164.18,43.1]
[1754420423011,0.68,164.2,164.18,43.1]
[1754420423212,0.2,164.25,164.19,13.92950536]
[1754420423429,0.68,164.24,164.2,50.93900046]
[1754420423793,8.03900046,164.25,164.2,43.1]
[1754420423998,0.68,164.23,164.21,7.83900046]
[1754420424305,0.2,164.25,164.22,50.93900046]
[1754420424625,0.2,164.25,164.23,7.83900046]
[1754420424815,0.2,164.25,164.24,43.1]
[1754420424993,0.2,164.25,164.24,51.60900046]
[1754420425194,0.2,164.25,164.24,72.94602835]
[1754420425792,1e-08,164.25,164.24,72.94602835]
[1754420426102,1e-08,164.25,164.24,73.83921656]
[1754420426613,1e-08,164.25,164.24,99.83921656]
[1754420426945,0.68,164.36,164.28,15.10621557]
[1754420427109,0.68,164.36,164.33,7.83900046]
[1754420427426,7.83900046,164.35,164.34,43.08]
[1754420427609,7.83900046,164.36,164.34,43.08]
[1754420427806,0.68,164.35,164.34,43.08]
[1754420428008,8.51900046,164.35,164.3,93.03130327]
[1754420428334,0.68,164.34,164.31,43.08]
[1754420428940,0.68,164.36,164.32,7.83900046]
[1754420429094,26.28432314,164.41,164.33,43.08]
[1754420429095,0.68,164.35,164.33,43.08]
[1754420429299,6.08345092,164.39,164.33,43.08]
[1754420429499,0.68,164.35,164.33,43.08]
[1754420430413,0.68,164.34,164.33,43.08]
[1754420430726,0.68,164.36,164.33,43.08]
[1754420430920,0.68,164.34,164.33,43.08]
[1754420431094,0.68,164.35,164.33,43.08]
[1754420431493,6.08309507,164.39,164.33,43.08]
[1754420431494,6.08309507,164.39,164.33,50.91900046]
[1754420431690,7.83900046,164.37,164.33,43.08]
[1754420431940,0.68,164.36,164.33,50.91900046]
[1754420432231,0.68,164.35,164.33,43.08]
[1754420432442,0.68,164.35,164.33,49.16527607]
[1754420432652,8.51900046,164.37,164.33,43.08]
[1754420432849,7.83900046,164.37,164.33,50.91900046]
[1754420433019,0.68,164.36,164.33,50.91900046]
[1754420433220,6.76318796,164.39,164.33,57.67430503]
[1754420433441,7.83900046,164.37,164.33,50.91900046]
[1754420433629,0.67,164.36,164.33,57.00421904]
[1754420434149,0.67,164.36,164.33,13.92421904]
[1754420434341,0.67,164.36,164.34,43.06]
[1754420435045,0.67,164.35,164.34,43.06]
[1754420435546,8.50900046,164.37,164.34,43.06]
[1754420435746,0.67,164.36,164.34,43.06]
[1754420435926,0.67,164.35,164.32,13.92461486]
[1754420436143,0.67,164.35,164.33,43.04]
[1754420436350,7.83900046,164.37,164.33,51.59900046]
[1754420436648,0.67,164.36,164.33,43.04]
[1754420436828,0.67,164.35,164.33,43.04]
[1754420437036,0.67,164.38,164.33,57.68421195]
[1754420437249,0.03,164.35,164.33,57.68421195]
[1754420437748,0.03,164.35,164.33,49.84521149]
[1754420438051,0.03,164.35,164.34,23.8073776]
[1754420438451,0.03,164.35,164.34,29.89232344]
[1754420439836,0.03,164.35,164.34,22.05332298]
[1754420440046,0.03,164.35,164.34,29.89232344]
[1754420440348,0.03,164.35,164.34,6.08494584]
[1754420440550,0.03,164.35,164.34,13.9239463]
[1754420440749,0.03,164.35,164.34,14.6439463]
[1754420440945,0.03,164.35,164.34,29.89232344]
[1754420443275,4.9424601,164.44,164.35,15.24837714]
[1754420443276,0.67,164.43,164.35,15.24837714]
[1754420443439,0.67,164.43,164.39,7.83900046]
[1754420443771,0.67,164.43,164.4,43.02]
[1754420443945,0.67,164.42,164.4,43.02]
[1754420444878,0.67,164.44,164.4,43.02]
[1754420445183,0.67,164.47,164.43,7.83900046]
[1754420445472,0.67,164.47,164.44,43.02]
[1754420446148,6.07979599,164.48,164.36,15.2099522]
[1754420446347,8.50900046,164.46,164.41,7.83900046]
[1754420446672,7.83900046,164.42,164.37,7.83900046]
[1754420446848,26.0,164.47,164.38,43.02]
[1754420446849,8.50900046,164.41,164.38,43.02]
[1754420447050,0.28432314,164.47,164.38,43.02]
[1754420447051,7.83900046,164.39,164.38,43.02]
[1754420447274,8.50900046,164.39,164.38,43.02]
[1754420447845,0.67,164.44,164.38,43.74]
[1754420448088,7.83900046,164.43,164.38,51.57900046]
[1754420448284,7.83900046,164.43,164.39,7.83900046]
[1754420448489,6.08050589,164.46,164.4,51.57900046]
[1754420448790,0.67,164.46,164.4,51.57900046]
[1754420448954,7.83900046,164.45,164.4,51.57900046]
[1754420449159,8.50900046,164.45,164.41,6.08235508]
[1754420449463,8.50900046,164.45,164.42,43.02]
[1754420449464,7.83900046,164.45,164.42,43.02]
[1754420449667,7.83900046,164.47,164.43,0.72]
[1754420449872,8.50900046,164.48,164.44,43.02]
[1754420450384,8.50900046,164.48,164.44,43.74]
[1754420450589,8.50900046,164.48,164.44,43.02]
[1754420450951,0.67,164.48,164.44,51.57900046]
[1754420451152,18.20878884,164.54,164.44,51.57900046]
[1754420451153,8.50900046,164.51,164.46,13.91916329]
[1754420451350,8.50900046,164.51,164.47,43.02]
[1754420451587,7.83900046,164.52,164.47,51.57900046]
[1754420451887,7.83900046,164.54,164.49,7.83900046]
[1754420452059,8.50900046,164.53,164.5,43.0]
[1754420452382,6.74718018,164.55,164.5,43.0]
[1754420452588,10.95803663,164.56,164.5,43.0]
[1754420452589,8.50900046,164.54,164.5,43.0]
[1754420452757,13.09250343,164.54,164.5,43.0]
[1754420453358,13.09250343,164.53,164.5,43.0]
[1754420453780,0.67,164.53,164.5,43.0]
[1754420453981,12.42250343,164.52,164.5,43.0]
[1754420454154,13.09250343,164.52,164.5,43.0]
[1754420454355,0.67,164.51,164.46,21.90662388]
[1754420454553,13.09250343,164.5,164.47,43.0]
[1754420454755,12.42250343,164.5,164.48,43.0]
[1754420454971,13.09250343,164.49,164.43,44.50400375]
[1754420455161,12.42250343,164.47,164.44,43.0]
[1754420455376,12.42250343,164.48,164.44,49.08098854]
[1754420455579,13.09250343,164.48,164.44,49.08098854]
[1754420455986,12.42250343,164.47,164.44,43.0]
[1754420456188,13.09250343,164.47,164.44,43.0]
[1754420456495,6.07980985,164.48,164.37,6.08383524]
[1754420456496,12.42250343,164.45,164.37,6.08383524]
[1754420456673,0.67,164.44,164.38,43.0]
[1754420456986,12.42250343,164.42,164.38,43.72]
[1754420457292,13.09250343,164.41,164.38,43.0]
[1754420457494,12.42250343,164.41,164.38,49.08344876]
[1754420457695,12.42250343,164.41,164.4,18.258726]
[1754420458008,12.42250343,164.45,164.4,13.14250343]
[1754420458165,12.42250343,164.45,164.41,43.72]
[1754420458365,0.67,164.48,164.42,0.72]
[1754420458594,12.42250343,164.45,164.42,0.72]
[1754420458864,12.42250343,164.46,164.42,0.72]
[1754420459094,12.42250343,164.45,164.42,0.72]
[1754420459481,12.42250343,164.45,164.42,6.80195183]
[1754420460192,12.42250343,164.45,164.41,43.0]
[1754420460193,6.08111403,164.45,164.41,43.0]
[1754420460386,6.08111403,164.45,164.36,0.14216157]
[1754420460387,12.42250343,164.42,164.36,0.72]
[1754420460590,12.42250343,164.37,164.35,0.06]
[1754420460802,0.67,164.41,164.36,43.0]
[1754420460965,12.42250343,164.37,164.36,43.0]
[1754420463323,0.67,164.42,164.36,49.80408681]
[1754420463601,12.42250343,164.39,164.36,43.72]
[1754420463896,12.42250343,164.37,164.36,43.0]
[1754420464204,12.42250343,164.37,164.35,0.06]
[1754420464503,0.69,164.38,164.36,43.0]
[1754420464706,12.42250343,164.37,164.36,43.0]
[1754420466902,0.69,164.42,164.36,49.76407517]
[1754420467108,12.42250343,164.39,164.36,49.76407517]
[1754420467477,12.42250343,164.39,164.36,43.0]
[1754420467708,12.42250343,164.38,164.36,43.0]
[1754420468004,12.42250343,164.39,164.36,107.0]
[1754420468203,12.42250343,164.39,164.36,113.08416285]
[1754420468416,0.69,164.43,164.37,0.68]
[1754420468574,12.42250343,164.39,164.37,64.0]
[1754420468773,13.11250343,164.38,164.36,107.0]
[1754420468974,13.11250343,164.37,164.36,64.0]
[1754420469202,13.11250343,164.37,164.36,43.0]
[1754420469725,19.19633867,164.37,164.36,43.0]
[1754420471889,19.19633867,164.37,164.35,0.06]
[1754420472210,13.11250343,164.36,164.35,0.06]
[1754420472622,13.39682657,164.36,164.33,0.06]
[1754420472806,0.28432314,164.33,164.25,43.06]
[1754420472987,12.42250343,164.26,164.25,0.06]
[1754420473186,12.42250343,164.26,164.25,43.08]
[1754420473888,0.69,164.33,164.25,62.27078349]
[1754420474089,12.42250343,164.31,164.26,13.10250343]
[1754420474395,6.0842054,164.36,164.25,49.16828006]
[1754420474396,6.7742054,164.36,164.28,12.42250343]
[1754420474589,12.42250343,164.34,164.29,56.12250343]
[1754420474792,6.0842054,164.36,164.29,55.44250343]
[1754420474996,12.42250343,164.3,164.27,0.68]
[1754420475197,0.69,164.35,164.25,33.93364521]
[1754420475198,0.69,164.32,164.28,43.04]
[1754420475383,12.42250343,164.29,164.28,43.04]
[1754420475814,0.69,164.32,164.28,49.12697257]
[1754420476021,12.42250343,164.29,164.28,43.04]
[1754420476185,6.77494584,164.34,164.28,43.72]
[1754420476382,12.42250343,164.3,164.28,43.72]
[1754420476582,6.08494584,164.34,164.28,43.04]
[1754420476812,12.42250343,164.29,164.28,43.04]
[1754420477014,13.11250343,164.29,164.28,43.04]
[1754420477592,21.29731044,164.34,164.28,43.04]
[1754420477593,0.69,164.31,164.28,43.04]
[1754420477995,12.42250343,164.29,164.28,43.04]
[1754420478793,32.0858119,164.32,164.28,43.04]
[1754420479115,12.42250343,164.3,164.28,43.72]
[1754420479523,12.42250343,164.31,164.28,43.72]
[1754420479708,12.42250343,164.31,164.28,49.12709309]
[1754420480022,12.42250343,164.29,164.28,43.04]
[1754420480200,13.11250343,164.29,164.28,43.04]
[1754420480408,13.11250343,164.29,164.25,43.12]
[1754420480608,12.42250343,164.26,164.25,43.12]
[1754420481294,12.42250343,164.26,164.25,43.8]
[1754420481499,12.42250343,164.26,164.25,43.12]
[1754420483895,26.69,164.31,164.25,49.88828006]
[1754420484134,12.42250343,164.28,164.25,49.88828006]
[1754420484302,26.0,164.31,164.26,0.68]
[1754420484497,26.0,164.31,164.25,61.63078349]
[1754420484498,12.42250343,164.29,164.27,0.68]
[1754420484698,0.69,164.3,164.28,43.04]
[1754420484899,12.42250343,164.29,164.28,43.04]
[1754420486710,19.19930116,164.29,164.28,43.04]
[1754420487052,13.11250343,164.29,164.26,43.02]
[1754420487250,26.0,164.32,164.26,43.02]
[1754420487544,26.0,164.32,164.26,43.7]
[1754420487545,12.42250343,164.27,164.26,43.7]
[1754420487900,12.42250343,164.27,164.26,43.02]
[1754420488099,0.69,164.31,164.26,49.78780105]
[1754420488325,12.42250343,164.27,164.26,49.78780105]
[1754420490612,6.77608698,164.31,164.26,43.02]
[1754420490817,7.78893897,164.27,164.26,43.02]
[1754420491013,8.47893897,164.27,164.25,0.06]
[1754420491231,7.78893897,164.26,164.25,43.1]
[1754420491726,8.47893897,164.26,164.25,43.1]
[1754420492033,7.78893897,164.26,164.25,49.86828006]
[1754420492822,0.83216157,164.3,164.25,49.86828006]
[1754420493020,6.91870038,164.3,164.25,49.86828006]
[1754420493227,7.78893897,164.26,164.25,43.1]
[1754420494420,8.49893897,164.26,164.25,43.1]
[1754420494620,8.49893897,164.26,164.25,0.06]
[1754420495112,7.78893897,164.26,164.25,0.06]
[1754420495711,7.78893897,164.28,164.25,43.1]
[1754420495938,7.78893897,164.28,164.26,0.72]
[1754420496134,7.78893897,164.28,164.27,43.04]
[1754420496609,12.46257363,164.28,164.27,43.04]
[1754420497553,12.46257363,164.29,164.27,49.84734935]
[1754420497721,12.46257363,164.3,164.27,49.84734935]
[1754420498415,12.46257363,164.29,164.27,49.84734935]
[1754420498611,12.46257363,164.3,164.27,49.84734935]
[1754420500014,12.46257363,164.28,164.25,64.06]
[1754420500325,12.46257363,164.26,164.25,64.06]
[1754420500520,12.46257363,164.26,164.25,107.1]
[1754420501212,12.46257363,164.27,164.25,113.90828006]
[1754420501408,12.46257363,164.28,164.26,0.72]
[1754420501655,12.46257363,164.31,164.27,43.04]
[1754420501960,12.46257363,164.31,164.28,6.80716824]
[1754420502119,12.46257363,164.31,164.29,43.06]
[1754420502519,12.46257363,164.3,164.29,43.06]
[1754420503131,26.74,164.33,164.29,43.06]
[1754420503132,12.46257363,164.31,164.29,43.06]
[1754420503338,12.46257363,164.31,164.29,43.78]
[1754420503852,12.46257363,164.31,164.29,43.06]
[1754420504349,26.03,164.33,164.3,0.72]
[1754420504524,12.46257363,164.32,164.31,43.04]
[1754420505118,0.03,164.33,164.31,43.04]
[1754420505344,12.49257363,164.33,164.31,43.04]
[1754420505616,12.46257363,164.32,164.31,43.04]
[1754420505946,0.03,164.33,164.31,43.76]
[1754420506121,0.03,164.33,164.32,6.08568646]
[1754420506319,0.03,164.33,164.32,6.80568646]
[1754420506739,0.03,164.33,164.32,19.26826009]
[1754420507271,0.03,164.33,164.32,34.51663723]
[1754420508845,0.03,164.33,164.32,19.26826009]
[1754420509050,0.03,164.33,164.32,6.80568646]
[1754420509262,0.03,164.33,164.31,113.12591525]
[1754420509946,13.17257363,164.32,164.31,43.04]
[1754420510283,13.17257363,164.32,164.31,43.02]
[1754420511154,19.25826009,164.32,164.31,43.02]
[1754420511361,19.40042166,164.32,164.25,0.06]
[1754420511576,12.46257363,164.26,164.25,0.06]
[1754420511741,12.46257363,164.26,164.25,43.1]
[1754420511942,13.17257363,164.26,164.25,43.1]
[1754420512460,19.26048304,164.26,164.25,43.1]
[1754420512651,19.26048304,164.26,164.25,0.06]
[1754420513246,19.54480618,164.26,164.25,0.06]
[1754420514472,12.46257363,164.26,164.25,0.06]
[1754420517975,32.7972607,164.28,164.25,0.06]
[1754420518175,12.46257363,164.26,164.25,0.06]
[1754420518592,13.17257363,164.26,164.25,0.06]
[1754420519706,12.46257363,164.26,164.25,0.06]
[1754420520999,12.46257363,164.3,164.25,56.28257363]
[1754420521308,12.46257363,164.3,164.26,0.72]
[1754420521469,0.03,164.33,164.26,0.86216157]
[1754420521809,12.46257363,164.29,164.27,43.04]
[1754420522104,12.46257363,164.29,164.27,49.12741195]
[1754420522459,12.46257363,164.28,164.27,49.12741195]
[1754420522660,12.46257363,164.28,164.27,43.04]
[1754420522860,13.17257363,164.28,164.27,43.04]
[1754420524370,19.25974187,164.28,164.27,43.04]
[1754420526114,13.17257363,164.28,164.27,43.04]
[1754420526276,12.46257363,164.28,164.27,43.1]
[1754420527088,19.24974187,164.28,164.27,43.1]
[1754420527508,19.24974187,164.28,164.27,0.06]
[1754420528796,13.16257363,164.28,164.27,0.06]
[1754420528989,12.46257363,164.28,164.27,0.06]
[1754420530828,18.54974187,164.28,164.27,0.06]
[1754420531131,19.24974187,164.28,164.27,0.06]
[1754420532903,31.7123155,164.28,164.27,0.06]
[1754420533728,35.80010963,164.28,164.27,0.06]
[1754420534316,38.6047352,164.26,164.25,0.06]
[1754420534736,39.3047352,164.26,164.25,0.06]
[1754420534916,45.53480618,164.26,164.25,0.06]
[1754420535944,88.57480618,164.26,164.25,0.06]
[1754420536138,88.57480618,164.26,164.23,0.06]
[1754420536139,103.7945797,164.26,164.23,0.06]
[1754420536345,12.74689677,164.24,164.23,0.06]
[1754420536941,19.53554752,164.24,164.23,0.06]
[1754420537731,18.83554752,164.24,164.23,0.06]
[1754420537926,12.46257363,164.24,164.23,0.06]
[1754420538144,12.46257363,164.24,164.23,0.73]
[1754420539052,12.46257363,164.24,164.23,0.06]
[1754420539222,12.46257363,164.24,164.23,0.73]
[1754420539420,12.46257363,164.24,164.23,0.06]
[1754420540544,26.0,164.21,164.15,0.67]
[1754420540757,12.46257363,164.16,164.15,0.67]
[1754420541344,12.46257363,164.17,164.15,0.67]
[1754420541551,12.46257363,164.2,164.15,19.22456266]
[1754420541750,12.46257363,164.2,164.16,0.67]
[1754420541918,12.46257363,164.2,164.17,43.04]
[1754420542221,12.46257363,164.19,164.18,0.67]
[1754420543244,12.46257363,164.19,164.18,6.76087586]
[1754420543425,12.46257363,164.21,164.18,6.76087586]
[1754420543625,12.46257363,164.21,164.19,0.67]
[1754420544643,69.04,164.25,164.2,0.67]
[1754420544644,12.46257363,164.22,164.2,0.67]
[1754420544819,12.46257363,164.24,164.21,43.71]
[1754420545020,38.46257363,164.25,164.22,6.75911062]
[1754420545232,12.46257363,164.27,164.23,0.67]
[1754420545443,12.46257363,164.27,164.24,0.67]
[1754420546228,12.46257363,164.28,164.25,0.67]
[1754420547130,12.46257363,164.28,164.23,6.75884809]
[1754420547131,12.46257363,164.26,164.23,6.75884809]
[1754420548151,12.46257363,164.27,164.24,6.75838187]
[1754420549160,12.46257363,164.26,164.23,6.81886808]
[1754420549350,12.49257363,164.26,164.23,6.81886808]
[1754420549845,12.46257363,164.25,164.23,0.06]
[1754420550042,12.46257363,164.25,164.23,6.14891435]
[1754420550281,12.46257363,164.25,164.23,0.06]
[1754420551658,12.49257363,164.26,164.24,0.67]
[1754420552376,0.03,164.26,164.24,6.75857206]
[1754420552567,0.03,164.26,164.25,56.17257363]
[1754420552752,0.03,164.26,164.25,71.42095077]
[1754420553161,0.03,164.26,164.25,135.42095077]
[1754420554148,0.03,164.26,164.25,113.12828006]
[1754420554668,0.03,164.26,164.25,113.78828006]
[1754420555174,0.03,164.26,164.25,126.25085369]
[1754420555746,0.03,164.26,164.25,113.12828006]
[1754420555957,0.03,164.26,164.25,113.78828006]
[1754420556157,0.03,164.26,164.25,126.25085369]
[1754420556472,0.03,164.26,164.25,62.25085369]
[1754420556661,0.03,164.26,164.25,77.49923083]
[1754420558254,0.03,164.26,164.25,141.49923083]
[1754420558974,0.03,164.26,164.25,113.12828006]
[1754420559155,0.03,164.26,164.25,113.78828006]
[1754420559472,0.03,164.26,164.25,141.49923083]
[1754420562062,0.03,164.26,164.25,140.83923083]
[1754420562258,0.03,164.26,164.25,76.83923083]
[1754420562597,0.03,164.26,164.25,49.12828006]
[1754420566259,1e-08,164.26,164.25,77.49923083]
[1754420568268,1e-08,164.26,164.25,141.49923083]
[1754420569473,1e-08,164.26,164.25,141.78355397]
[1754420570371,1e-08,164.28,164.27,41.10621557]
[1754420570574,1e-08,164.28,164.27,161.01527391]
[1754420570783,1e-08,164.28,164.27,161.67527391]
[1754420571595,1e-08,164.28,164.27,167.54291271]
[1754420571805,1e-08,164.28,164.27,166.59858957]
[1754420573808,1e-08,164.28,164.27,167.25858957]
[1754420574379,0.03,164.33,164.32,12.46257363]
[1754420574576,0.03,164.33,164.32,119.48257362]
[1754420575578,0.03,164.33,164.32,125.56826008]
[1754420579424,1e-08,164.35,164.33,41.24837714]
[1754420579727,1e-08,164.35,164.34,71.01527391]
[1754420579888,1e-08,164.35,164.34,71.67527391]
[1754420580483,1e-08,164.35,164.34,28.37095077]
[1754420580696,1e-08,164.35,164.34,66.04403537]
[1754420581410,1e-08,164.35,164.34,72.12898121]
[1754420582701,1e-08,164.35,164.34,76.79731666]
[1754420583817,1e-08,164.35,164.34,61.54893952]
[1754420584125,0.70000001,164.35,164.34,6.08494584]
[1754420584335,1e-08,164.35,164.34,49.08494584]
[1754420584488,1e-08,164.35,164.34,61.52893952]
[1754420584697,1e-08,164.35,164.34,76.77731666]
[1754420588292,0.70000001,164.35,164.34,76.77731666]
[1754420588496,0.70000001,164.35,164.34,64.33332298]
[1754420588693,0.70000001,164.35,164.34,61.52893952]
[1754420589013,0.70000001,164.35,164.34,125.52893952]
[1754420589730,0.70000001,164.35,164.34,113.08494584]
[1754420589906,13.14399369,164.35,164.34,43.0]
[1754420594415,13.14399369,164.35,164.33,43.0]
[1754420594732,13.14399368,164.34,164.33,43.0]
[1754420596637,13.14399368,164.34,164.27,85.77837714]
[1754420596638,13.14399368,164.34,164.27,43.82]
[1754420596802,12.44399368,164.3,164.28,43.0]
[1754420597004,12.44399368,164.31,164.28,43.0]
[1754420597210,13.14399368,164.31,164.28,43.0]
[1754420597828,13.14399368,164.31,164.28,49.08694638]
[1754420598330,13.14399368,164.3,164.28,49.08694638]
[1754420598509,13.14399368,164.29,164.28,43.0]
[1754420599620,12.44399368,164.31,164.28,49.08716824]
[1754420600225,13.14399368,164.31,164.28,49.08716824]
[1754420601939,13.14399368,164.3,164.28,49.08716824]
[1754420602636,0.7,164.3,164.28,49.08716824]
[1754420602829,8.48646061,164.3,164.28,49.08716824]
[1754420603032,8.48646061,164.29,164.28,43.0]
[1754420604034,7.78646061,164.29,164.28,43.0]
[1754420605040,0.7,164.33,164.28,49.79716824]
[1754420605265,7.78646061,164.31,164.28,49.79716824]
[1754420606009,7.78646061,164.3,164.28,49.08716824]
[1754420606313,8.48646061,164.3,164.28,43.0]
[1754420606523,7.78646061,164.3,164.28,43.0]
[1754420606935,8.48646061,164.3,164.28,43.0]
[1754420607517,7.78646061,164.31,164.28,49.79711964]
[1754420607820,7.78646061,164.29,164.28,43.0]
[1754420608226,8.48646061,164.3,164.28,43.0]
[1754420608537,7.78646061,164.3,164.28,49.08709971]
[1754420609123,7.78646061,164.29,164.28,49.08709971]
[1754420609352,7.78646061,164.3,164.28,49.08709971]
[1754420609850,8.48646061,164.29,164.28,43.0]
[1754420610417,7.78646061,164.29,164.28,43.0]
[1754420610649,7.78646061,164.29,164.28,49.08716824]
[1754420610823,7.78646061,164.3,164.28,49.79716824]
[1754420611028,7.78646061,164.31,164.28,49.79716824]
[1754420612149,0.7,164.33,164.28,49.79716824]
[1754420612351,6.0850439,164.34,164.29,8.49646061]
[1754420612352,7.78646061,164.34,164.29,8.49646061]
[1754420612561,8.48646061,164.34,164.3,43.73]
[1754420612850,7.78646061,164.32,164.3,43.02]
[1754420613061,7.78646061,164.31,164.3,43.02]
[1754420613829,7.78646061,164.32,164.3,49.10635181]
[1754420614039,0.67,164.34,164.3,49.10635181]
[1754420614244,7.78646061,164.32,164.3,49.82635181]
[1754420614446,6.08470017,164.35,164.3,49.10635181]
[1754420614647,7.78646061,164.33,164.3,49.10635181]
[1754420615056,7.78646062,164.35,164.31,0.72]
[1754420615254,7.78646062,164.35,164.32,43.74]
[1754420615433,1e-08,164.35,164.32,43.74]
[1754420615754,1e-08,164.35,164.34,6.08494584]
[1754420615963,1e-08,164.35,164.34,49.10494584]
[1754420616258,1e-08,164.35,164.34,43.02]
[1754420618361,1e-08,164.35,164.34,49.10494584]
[1754420618559,1e-08,164.35,164.34,121.61140645]
[1754420620060,1e-08,164.35,164.34,136.85978359]
[1754420620464,1e-08,164.35,164.34,73.14410673]
[1754420620664,8.45646061,164.46,164.38,15.10621557]
[1754420620832,7.78646061,164.45,164.4,7.78646061]
[1754420621142,8.45646061,164.45,164.41,43.0]
[1754420621968,7.78646061,164.43,164.41,43.0]
[1754420622264,8.45646061,164.42,164.4,43.02]
[1754420622471,8.45646061,164.41,164.35,6.0845756]
[1754420622826,7.78646061,164.38,164.36,43.04]
[1754420623462,8.45646061,164.37,164.36,43.04]
[1754420624857,13.12144935,164.37,164.36,43.04]
[1754420625480,19.20528459,164.37,164.36,43.04]
[1754420626479,19.20528459,164.37,164.34,43.02]
[1754420626638,18.53528459,164.37,164.34,43.02]
[1754420626834,12.45144935,164.35,164.34,43.02]
[1754420627170,12.45144935,164.35,164.32,43.02]
[1754420627171,13.40577249,164.35,164.32,43.02]
[1754420627390,12.45144935,164.33,164.32,43.02]
[1754420628944,13.12144935,164.33,164.32,43.02]
[1754420630154,12.45144935,164.33,164.32,43.02]
[1754420630756,13.12144935,164.33,164.32,43.02]
[1754420631558,12.45144935,164.33,164.32,43.02]
[1754420632760,19.20676548,164.33,164.3,43.0]
[1754420632959,12.45144935,164.31,164.3,43.0]
[1754420633142,13.12144935,164.31,164.28,43.0]
[1754420633348,12.45144935,164.29,164.28,43.0]
[1754420635463,13.12144935,164.29,164.28,43.0]
[1754420635701,19.20824708,164.29,164.25,0.78]
[1754420635992,12.45144935,164.27,164.26,43.02]
[1754420637595,13.12144935,164.27,164.26,43.02]
[1754420638397,19.20898815,164.27,164.26,43.02]
[1754420638701,0.14216157,164.26,164.25,0.06]
[1754420638988,13.26361092,164.26,164.25,0.06]
[1754420639850,19.35152033,164.26,164.25,0.06]
[1754420640293,12.45144935,164.26,164.25,0.06]
[1754420640594,13.12144935,164.26,164.25,0.06]